[Event "ESP-chT 2nd Division 2019"]
[Site "Linares"]
[Date "2019.08.21"]
[Round "4.36"]
[White "Sanchez Saez, Francisco"]
[Black "Gonzalez Trigal, Jose Luis"]
[Result "1-0"]
[ECO "A13"]
[WhiteElo "2359"]
[BlackElo "2352"]
[Annotator "NA"]
[PlyCount "131"]
[EventDate "2019.08.19"]
[EventType "team-tourn"]
[EventCountry "ESP"]
[SourceTitle "playchess.com"]
[Source "ChessBase"]
[SourceQuality "1"]
[TimeControl "5400+30"]

1. Nf3 {[%emt 0:00:00]} Nf6 {[%emt 0:00:00]} 2. c4 {[%emt 0:00:00]} e6 {[%emt 0:00:13]} 3. g3 {[%emt 0:00:00]} d5 {[%emt 0:00:21]} 4. Bg2 {[%emt 0:00:00]} dxc4 {[%emt 0:01:23]} 5. Na3 {[%emt 0:00:04]} Bxa3 {[%emt 0:00:43]} 6. bxa3 {[%emt 0:00:06]} O-O {[%emt 0:00:09]} 7. Qc2 {[%emt 0:02:28]} c5 {[%emt 0:07:03]} 8. Bb2 {[%emt 0:02:24]} Nc6 {[%emt 0:04:09]} 9. Qxc4 {[%emt 0:05:56]} b6 {[%emt 0:11:50]} 10. Ng5 {[%emt 0:25:48]} Nd5 {[%emt 0:13:17]} 11. h4 {[%emt 0:20:20]} Rb8 {[%emt 0:25:03]} 12. Qa4 {[%emt 0:13:10]} Bd7 {[%emt 0:18:05]} 13. Qc2 {[%emt 0:00:15]} f5 {[%emt 0:00:29]} 14. e4 {[%emt 0:02:05]} Nf6 {[%emt 0:10:12]} 15. exf5 {[%emt 0:01:22]} exf5 {[%emt 0:01:37]} 16. Qc4+ {[%emt 0:01:14]} Kh8 {[%emt 0:00:01]} 17. Nf7+ {[%emt 0:01:16]} Rxf7 {[%emt 0:00:02]} 18. Qxf7 {[%emt 0:00:07]} Qe8+ {[%emt 0:00:08]} 19. Qxe8+ {[%emt 0:00:17]} Rxe8+ {[%emt 0:00:01]} 20. Kd1 {[%emt 0:01:40]} Ne5 {[%emt 0:00:49]} 21. Bxe5 {[%emt 0:00:55]} Rxe5 {[%emt 0:00:01]} 22. Kc2 {[%emt 0:00:58]} Re8 {[%emt 0:02:31]} 23. Rhe1 {[%emt 0:00:59]} Rd8 {[%emt 0:00:02]} 24. Bf3 {[%emt 0:01:01]} Kg8 {[%emt 0:00:20]} 25. Re3 {[%emt 0:00:24]} f4 {[%emt 0:01:53]} 26. gxf4 {[%emt 0:00:37]} Ba4+ {[%emt 0:00:16]} 27. Kc3 {[%emt 0:00:26]} Rd4 {[%emt 0:00:01]} 28. Rg1 {[%emt 0:04:19]} Rxf4 {[%emt 0:00:03]} 29. h5 {[%emt 0:00:19]} Kf8 {[%emt 0:00:39]} 30. d3 {[%emt 0:01:31]} h6 {[%emt 0:01:22]} 31. Rg2 {[%emt 0:02:42]} Be8 {[%emt 0:00:13]} 32. Rh2 {[%emt 0:01:27]} Bf7 {[%emt 0:00:17]} 33. Kb2 {[%emt 0:01:15]} Rf5 {[%emt 0:01:07]} 34. Be4 {[%emt 0:00:53]} Rg5 {[%emt 0:00:34]} 35. Rg3 {[%emt 0:02:14]} Re5 {[%emt 0:00:02]} 36. f4 {[%emt 0:02:31]} Re7 {[%emt 0:00:40]} 37. Bg6 {[%emt 0:00:23]} Bxg6 {[%emt 0:01:41]} 38. hxg6 {[%emt 0:00:36]} Re1 {[%emt 0:00:35]} 39. Rgg2 {[%emt 0:01:55]} Re3 {[%emt 0:00:53]} 40. Kc2 {[%emt 0:00:57]} Nd5 {[%emt 0:00:28]} 41. Kd2 {[%emt 0:00:26]} Re6 {[%emt 0:00:31]} 42. f5 {[%emt 0:00:49]} Rf6 {[%emt 0:00:20]} 43. Re2 {[%emt 0:01:22]} Ne7 {[%emt 0:00:49]} 44. Re6 {[%emt 0:01:19]} Rxe6 45. fxe6 {[%emt 0:00:07]} Nxg6 {[%emt 0:00:33]} 46. Rf2+ {[%emt 0:00:19]} Ke7 {[%emt 0:00:08]} 47. Rf7+ {[%emt 0:00:13]} Kxe6 {[%emt 0:00:01]} 48. Rxg7 {[%emt 0:00:07]} Ne7 {[%emt 0:00:32]} 49. Rh7 {[%emt 0:00:09]} Kd7 {[%emt 0:00:53]} 50. Kc3 {[%emt 0:00:20]} b5 {[%emt 0:00:49]} 51. a4 {[%emt 0:00:30]} a6 {[%emt 0:00:04]} 52. a5 {[%emt 0:00:19]} h5 {[%emt 0:00:56]} 53. Rxh5 {[%emt 0:00:20]} Nc6 {[%emt 0:00:11]} 54. Rxc5 {[%emt 0:01:48]} Nxa5 {[%emt 0:00:07]} 55. Rh5 {[%emt 0:00:20]} Nc6 {[%emt 0:00:35]} 56. Rh6 {[%emt 0:00:27]} Kc7 {[%emt 0:00:29]} 57. d4 {[%emt 0:00:18]} a5 {[%emt 0:00:14]} 58. d5 {[%emt 0:01:30]} Nb4 {[%emt 0:00:19]} 59. Kd4 {[%emt 0:01:18]} Nxa2 {[%emt 0:00:39]} 60. Kc5 {[%emt 0:00:07]} Nc3 {[%emt 0:00:44]} 61. Rh7+ {[%emt 0:00:12]} Kd8 {[%emt 0:00:25]} 62. Kc6 {[%emt 0:01:38]} Ne2 {[%emt 0:01:54]} 63. Rh8+ {[%emt 0:00:50]} Ke7 {[%emt 0:00:01]} 64. d6+ {[%emt 0:00:10]} Kf7 {[%emt 0:00:01]} 65. d7 {[%emt 0:00:25]} Nd4+ {[%emt 0:00:03]} 66. Kd5 {[%emt 0:00:45]} 1-0

[Event "ESP-chT 2nd Division 2019"]
[Site "Linares"]
[Date "2019.08.21"]
[Round "4.37"]
[White "Escudero Manzano, Alejandro"]
[Black "Galiana Fernandez, Adrian"]
[Result "0-1"]
[ECO "C54"]
[WhiteElo "2229"]
[BlackElo "2295"]
[Annotator "NA"]
[PlyCount "93"]
[EventDate "2019.08.19"]
[EventType "team-tourn"]
[EventCountry "ESP"]
[SourceTitle "playchess.com"]
[Source "ChessBase"]
[SourceQuality "1"]
[TimeControl "5400+30"]

1. e4 {[%emt 0:00:00]} e5 {[%emt 0:00:00]} 2. Nf3 {[%emt 0:00:00]} Nc6 {[%emt 0:00:00]} 3. Bc4 {[%emt 0:00:00]} Bc5 {[%emt 0:00:00]} 4. c3 {[%emt 0:00:09]} Nf6 {[%emt 0:00:00]} 5. d3 {[%emt 0:00:14]} d6 {[%emt 0:00:00]} 6. O-O {[%emt 0:00:47]} O-O {[%emt 0:00:05]} 7. h3 {[%emt 0:00:52]} a5 {[%emt 0:00:11]} 8. a4 {[%emt 0:04:14]} h6 {[%emt 0:00:28]} 9. Re1 {[%emt 0:00:52]} Be6 {[%emt 0:01:20]} 10. Bxe6 {[%emt 0:17:08]} fxe6 {[%emt 0:00:13]} 11. d4 {[%emt 0:00:23]} exd4 {[%emt 0:00:06]} 12. cxd4 {[%emt 0:00:21]} Bb4 {[%emt 0:00:08]} 13. Nc3 {[%emt 0:02:30]} Qd7 {[%emt 0:19:07]} 14. Re3 {[%emt 0:11:19]} Qf7 {[%emt 0:04:56]} 15. Qe2 {[%emt 0:27:13]} e5 {[%emt 0:06:43]} 16. dxe5 {[%emt 0:02:07]} dxe5 {[%emt 0:00:19]} 17. Rd3 {[%emt 0:02:01]} Rad8 {[%emt 0:02:07]} 18. Be3 {[%emt 0:05:31]} Bxc3 {[%emt 0:02:21]} 19. Rxc3 {[%emt 0:00:41]} Nxe4 {[%emt 0:00:47]} 20. Rcc1 {[%emt 0:02:02]} Nd6 {[%emt 0:04:20]} 21. Rc5 {[%emt 0:00:57]} e4 {[%emt 0:01:46]} 22. Ne5 {[%emt 0:08:07]} Nxe5 {[%emt 0:01:05]} 23. Rxe5 {[%emt 0:00:04]} b6 {[%emt 0:00:08]} 24. Rc1 {[%emt 0:01:08]} c5 {[%emt 0:02:52]} 25. Rd1 {[%emt 0:01:45]} Rde8 {[%emt 0:08:31]} 26. Rxe8 {[%emt 0:02:38]} Nxe8 {[%emt 0:01:37]} 27. Qb5 {[%emt 0:01:10]} Qe6 {[%emt 0:00:56]} 28. Rd7 {[%emt 0:01:03]} Nf6 {[%emt 0:00:29]} 29. Rb7 {[%emt 0:01:07]} Nd5 {[%emt 0:00:43]} 30. Qd7 {[%emt 0:03:04]} Qxd7 {[%emt 0:08:01]} 31. Rxd7 {[%emt 0:00:06]} Nxe3 {[%emt 0:00:05]} 32. fxe3 {[%emt 0:00:04]} Rb8 {[%emt 0:00:05]} 33. b3 {[%emt 0:02:40]} b5 {[%emt 0:00:28]} 34. Rd5 {[%emt 0:01:50]} c4 {[%emt 0:00:34]} 35. bxc4 {[%emt 0:00:14]} b4 {[%emt 0:00:13]} 36. Kf2 {[%emt 0:00:53]} Kf7 {[%emt 0:04:04]} 37. Ke2 {[%emt 0:01:44]} b3 {[%emt 0:00:15]} 38. Rd1 {[%emt 0:00:05]} Ke6 {[%emt 0:00:36]} 39. Rb1 {[%emt 0:01:00]} Kd6 {[%emt 0:00:22]} 40. Kd2 {[%emt 0:00:17]} Kc5 {[%emt 0:00:07]} 41. Kc3 {[%emt 0:00:04]} b2 {[%emt 0:00:25]} 42. Rxb2 {[%emt 0:01:57]} Rxb2 {[%emt 0:00:06]} 43. Kxb2 {[%emt 0:00:03]} Kxc4 {[%emt 0:00:09]} 44. Kc2 {[%emt 0:00:17]} Kb4 {[%emt 0:00:25]} 45. Kb2 {[%emt 0:00:33]} Kxa4 {[%emt 0:00:40]} 46. Kc3 {[%emt 0:00:11]} Kb5 {[%emt 0:00:20]} 47. Kd4 0-1

[Event "ESP-chT 2nd Division 2019"]
[Site "Linares"]
[Date "2019.08.21"]
[Round "4.38"]
[White "Sanchez Dengra, Jose Maria"]
[Black "Sanchez Jerez, Emilio Miguel"]
[Result "0-1"]
[ECO "B32"]
[WhiteElo "2216"]
[BlackElo "2141"]
[Annotator "NA"]
[PlyCount "68"]
[EventDate "2019.08.19"]
[EventType "team-tourn"]
[EventCountry "ESP"]
[SourceTitle "playchess.com"]
[Source "ChessBase"]
[SourceQuality "1"]
[TimeControl "5400+30"]

1. e4 {[%emt 0:00:00]} c5 {[%emt 0:00:00]} 2. Nf3 {[%emt 0:00:00]} Nc6 {[%emt 0:00:00]} 3. d4 {[%emt 0:00:00]} cxd4 {[%emt 0:00:00]} 4. Nxd4 {[%emt 0:00:01]} e5 {[%emt 0:00:03]} 5. Nb5 {[%emt 0:00:27]} a6 {[%emt 0:01:10]} 6. Nd6+ {[%emt 0:01:06]} Bxd6 {[%emt 0:01:12]} 7. Qxd6 {[%emt 0:00:07]} Qe7 {[%emt 0:00:19]} 8. Qd2 {[%emt 0:18:26]} Nf6 {[%emt 0:00:14]} 9. Nc3 {[%emt 0:02:28]} O-O {[%emt 0:00:11]} 10. a4 {[%emt 0:06:44]} d6 {[%emt 0:08:35]} 11. b3 {[%emt 0:10:10]} Nd4 {[%emt 0:07:46]} 12. Bd3 {[%emt 0:10:53]} Be6 {[%emt 0:02:00]} 13. O-O {[%emt 0:01:59]} b5 {[%emt 0:21:21]} 14. Ne2 {[%emt 0:05:16]} Nxe2+ {[%emt 0:15:18]} 15. Qxe2 {[%emt 0:00:17]} b4 {[%emt 0:00:49]} 16. Bxa6 {[%emt 0:08:54]} Nxe4 {[%emt 0:21:33]} 17. Qxe4 {[%emt 0:01:34]} Rxa6 {[%emt 0:00:21]} 18. Qxb4 {[%emt 0:00:19]} Qc7 {[%emt 0:02:11]} 19. Qd2 {[%emt 0:10:53]} d5 {[%emt 0:04:35]} 20. Ba3 {[%emt 0:06:24]} Rc8 {[%emt 0:00:51]} 21. Rfc1 {[%emt 0:03:14]} d4 {[%emt 0:00:33]} 22. Rab1 {[%emt 0:02:40]} h5 {[%emt 0:02:45]} 23. Bb4 {[%emt 0:01:03]} Rc6 {[%emt 0:01:06]} 24. Rb2 {[%emt 0:00:33]} Bf5 {[%emt 0:01:45]} 25. Ba5 {[%emt 0:00:26]} Qd7 {[%emt 0:01:10]} 26. b4 {[%emt 0:06:23]} Rg6 {[%emt 0:00:53]} 27. f3 {[%emt 0:01:52]} e4 {[%emt 0:01:02]} 28. fxe4 {[%emt 0:01:18]} Bxe4 {[%emt 0:00:13]} 29. g3 {[%emt 0:00:02]} Rc3 {[%emt 0:02:44]} 30. Rb3 {[%emt 0:00:46]} Rxb3 {[%emt 0:02:38]} 31. cxb3 {[%emt 0:00:02]} Bb7 {[%emt 0:01:13]} 32. Rc7 {[%emt 0:01:06]} Qd5 {[%emt 0:00:03]} 33. Rxb7 {[%emt 0:00:14]} Qxb7 {[%emt 0:00:02]} 34. Qxd4 {[%emt 0:00:07]} Qf3 {[%emt 0:00:42]} 0-1

[Event "ESP-chT 2nd Division 2019"]
[Site "Linares"]
[Date "2019.08.21"]
[Round "4.39"]
[White "Escudero Manzano, Sergio"]
[Black "Aledo Yanguas, Javier"]
[Result "1/2-1/2"]
[ECO "B17"]
[WhiteElo "2190"]
[BlackElo "2023"]
[Annotator "NA"]
[PlyCount "101"]
[EventDate "2019.08.19"]
[EventType "team-tourn"]
[EventCountry "ESP"]
[SourceTitle "playchess.com"]
[Source "ChessBase"]
[SourceQuality "1"]
[TimeControl "5400+30"]

1. e4 {[%emt 0:00:00]} c6 {[%emt 0:00:00]} 2. d4 {[%emt 0:00:21]} d5 {[%emt 0:00:00]} 3. Nc3 {[%emt 0:00:19]} dxe4 {[%emt 0:00:00]} 4. Nxe4 {[%emt 0:00:07]} Nd7 {[%emt 0:00:03]} 5. Ng5 {[%emt 0:01:04]} Ngf6 {[%emt 0:00:53]} 6. Bd3 {[%emt 0:00:29]} e6 {[%emt 0:02:51]} 7. N1f3 {[%emt 0:00:39]} h6 {[%emt 0:07:43]} 8. Ne4 {[%emt 0:05:55]} Nxe4 {[%emt 0:01:19]} 9. Bxe4 {[%emt 0:00:12]} Nf6 {[%emt 0:01:44]} 10. Bd3 {[%emt 0:00:46]} Qc7 {[%emt 0:02:09]} 11. Qe2 {[%emt 0:00:46]} b6 {[%emt 0:02:41]} 12. Bd2 {[%emt 0:01:08]} Bb7 {[%emt 0:02:34]} 13. O-O-O {[%emt 0:02:01]} O-O-O {[%emt 0:01:59]} 14. Kb1 {[%emt 0:17:07]} Kb8 {[%emt 0:05:14]} 15. Rhe1 {[%emt 0:04:08]} Nd5 {[%emt 0:08:54]} 16. g3 {[%emt 0:07:34]} c5 {[%emt 0:05:01]} 17. c4 {[%emt 0:05:00]} Nf6 {[%emt 0:02:01]} 18. dxc5 {[%emt 0:10:40]} Bxc5 {[%emt 0:03:46]} 19. Bc3 {[%emt 0:00:45]} Rhe8 {[%emt 0:05:35]} 20. Ne5 {[%emt 0:09:05]} Bd4 {[%emt 0:08:01]} 21. Qc2 {[%emt 0:08:47]} Bxc3 {[%emt 0:07:02]} 22. Qxc3 {[%emt 0:00:09]} Re7 {[%emt 0:01:33]} 23. f4 {[%emt 0:01:56]} Nd7 {[%emt 0:03:17]} 24. Be4 {[%emt 0:03:23]} Bxe4+ {[%emt 0:04:39]} 25. Rxe4 {[%emt 0:00:51]} Nxe5 {[%emt 0:02:43]} 26. Rxd8+ {[%emt 0:00:43]} Qxd8 {[%emt 0:00:07]} 27. Qxe5+ {[%emt 0:00:30]} Kb7 28. Kc2 Rd7 {[%emt 0:03:16]} 29. Re2 {[%emt 0:04:42]} g6 30. Qc3 {[%emt 0:01:33]} Rd4 {[%emt 0:05:39]} 31. Re5 {[%emt 0:01:33]} Qd7 {[%emt 0:01:48]} 32. b3 Kb8 {[%emt 0:02:23]} 33. c5 {[%emt 0:06:33]} Kb7 34. a4 {[%emt 0:04:18]} Rd5 {[%emt 0:04:35]} 35. cxb6 {[%emt 0:01:27]} axb6 36. Re4 {[%emt 0:01:38]} Rc5 {[%emt 0:02:58]} 37. Rc4 {[%emt 0:00:09]} Rxc4 {[%emt 0:00:23]} 38. Qxc4 Qe7 {[%emt 0:02:09]} 39. Qe4+ {[%emt 0:00:41]} Ka7 {[%emt 0:00:28]} 40. Qd4 {[%emt 0:00:45]} Qc7+ {[%emt 0:01:15]} 41. Kd2 {[%emt 0:00:00]} Kb7 42. h3 {[%emt 0:01:34]} Qc6 {[%emt 0:01:48]} 43. Kd3 {[%emt 0:00:47]} Qf3+ {[%emt 0:00:44]} 44. Kc4 {[%emt 0:00:40]} Kc6 {[%emt 0:01:26]} 45. Qd3 {[%emt 0:00:43]} Qf2 {[%emt 0:00:49]} 46. Qe4+ {[%emt 0:00:17]} Kc7 {[%emt 0:00:30]} 47. Qe5+ {[%emt 0:00:37]} Kc6 {[%emt 0:00:33]} 48. Qb5+ {[%emt 0:00:13]} Kc7 {[%emt 0:00:25]} 49. Qe5+ {[%emt 0:00:52]} Kc6 {[%emt 0:00:06]} 50. Qe4+ {[%emt 0:00:40]} Kc7 {[%emt 0:00:15]} 51. Qe5+ {[%emt 0:00:47]} 1/2-1/2

[Event "ESP-chT 2nd Division 2019"]
[Site "Linares"]
[Date "2019.08.21"]
[Round "4.40"]
[White "Sanchez Dengra, Barbara"]
[Black "Gil Quilez, Sonia"]
[Result "1/2-1/2"]
[ECO "B32"]
[WhiteElo "1983"]
[BlackElo "2102"]
[Annotator "NA"]
[PlyCount "132"]
[EventDate "2019.08.19"]
[EventType "team-tourn"]
[EventCountry "ESP"]
[SourceTitle "playchess.com"]
[Source "ChessBase"]
[SourceQuality "1"]
[TimeControl "5400+30"]

1. e4 {[%emt 0:00:00]} c5 {[%emt 0:00:00]} 2. Nf3 {[%emt 0:00:10]} Nc6 {[%emt 0:00:13]} 3. d4 {[%emt 0:01:45]} cxd4 {[%emt 0:00:11]} 4. Nxd4 {[%emt 0:00:42]} e5 {[%emt 0:00:28]} 5. Nb5 {[%emt 0:01:07]} a6 {[%emt 0:00:32]} 6. Nd6+ {[%emt 0:01:51]} Bxd6 {[%emt 0:00:34]} 7. Qxd6 {[%emt 0:00:13]} Qe7 {[%emt 0:00:22]} 8. Qxe7+ {[%emt 0:08:33]} Ngxe7 {[%emt 0:00:08]} 9. Nc3 {[%emt 0:01:11]} d5 {[%emt 0:01:18]} 10. exd5 {[%emt 0:14:24]} Nb4 {[%emt 0:00:10]} 11. Bd3 {[%emt 0:03:27]} Nxd3+ {[%emt 0:01:11]} 12. cxd3 {[%emt 0:00:10]} Bf5 {[%emt 0:01:01]} 13. O-O {[%emt 0:08:41]} O-O {[%emt 0:19:39]} 14. Re1 {[%emt 0:09:07]} Ng6 {[%emt 0:01:02]} 15. Be3 {[%emt 0:01:57]} Rfd8 {[%emt 0:05:31]} 16. Bb6 {[%emt 0:03:49]} Rd7 {[%emt 0:00:06]} 17. d4 {[%emt 0:02:35]} f6 {[%emt 0:04:16]} 18. dxe5 {[%emt 0:01:44]} Nxe5 {[%emt 0:00:14]} 19. d6 {[%emt 0:12:45]} Nd3 {[%emt 0:23:46]} 20. Re7 {[%emt 0:06:25]} Rxd6 {[%emt 0:02:18]} 21. Rxb7 {[%emt 0:01:06]} Bc8 {[%emt 0:00:29]} 22. Ra7 {[%emt 0:00:25]} Rxa7 {[%emt 0:01:05]} 23. Bxa7 {[%emt 0:00:01]} Nxb2 {[%emt 0:01:43]} 24. Re1 {[%emt 0:01:20]} Kf7 {[%emt 0:03:14]} 25. h4 {[%emt 0:00:46]} Bf5 {[%emt 0:10:35]} 26. Ne4 {[%emt 0:07:01]} Rd7 {[%emt 0:04:39]} 27. Bb8 {[%emt 0:01:40]} Nd3 {[%emt 0:00:33]} 28. Re3 {[%emt 0:02:48]} Bxe4 {[%emt 0:01:51]} 29. Rxe4 {[%emt 0:00:08]} Rb7 {[%emt 0:00:03]} 30. Bd6 {[%emt 0:01:10]} Rb1+ {[%emt 0:03:14]} 31. Kh2 {[%emt 0:01:10]} Nxf2 {[%emt 0:03:38]} 32. Re7+ {[%emt 0:00:40]} Kg6 {[%emt 0:00:03]} 33. Kg3 {[%emt 0:00:53]} Nd3 {[%emt 0:03:41]} 34. Ra7 {[%emt 0:01:17]} Rb6 {[%emt 0:03:19]} 35. Bf8 {[%emt 0:00:41]} h5 {[%emt 0:00:29]} 36. Rxg7+ {[%emt 0:00:52]} Kf5 {[%emt 0:00:05]} 37. Rd7 {[%emt 0:01:51]} Nf4 {[%emt 0:01:57]} 38. Bh6 {[%emt 0:01:10]} Ng6 {[%emt 0:00:06]} 39. Rd5+ {[%emt 0:01:14]} Ne5 {[%emt 0:00:13]} 40. Bf4 {[%emt 0:00:50]} Rc6 {[%emt 0:00:57]} 41. Bxe5 {[%emt 0:01:28]} fxe5 {[%emt 0:00:04]} 42. Ra5 {[%emt 0:00:15]} Ke4 {[%emt 0:00:34]} 43. Ra4+ {[%emt 0:00:49]} Ke3 44. Ra5 Rg6+ {[%emt 0:00:53]} 45. Kh3 {[%emt 0:01:21]} Kf4 {[%emt 0:02:00]} 46. Kh2 {[%emt 0:00:46]} e4 {[%emt 0:00:37]} 47. Rxh5 {[%emt 0:00:12]} e3 {[%emt 0:00:02]} 48. Kg1 {[%emt 0:00:24]} Rc6 {[%emt 0:02:03]} 49. Kf1 {[%emt 0:00:37]} Rc1+ {[%emt 0:00:36]} 50. Ke2 {[%emt 0:00:06]} Rc2+ {[%emt 0:00:02]} 51. Ke1 {[%emt 0:00:05]} Rxa2 {[%emt 0:00:19]} 52. Rh8 {[%emt 0:00:25]} Rxg2 {[%emt 0:01:42]} 53. Rf8+ {[%emt 0:00:11]} Ke4 {[%emt 0:00:15]} 54. Re8+ {[%emt 0:00:13]} Kd4 {[%emt 0:01:21]} 55. Rd8+ {[%emt 0:00:30]} Kc3 {[%emt 0:00:30]} 56. Rc8+ {[%emt 0:00:00]} Kb4 {[%emt 0:00:24]} 57. Re8 {[%emt 0:00:45]} Rh2 {[%emt 0:00:54]} 58. Re4+ {[%emt 0:00:41]} Kc5 {[%emt 0:00:23]} 59. Kd1 {[%emt 0:01:17]} a5 {[%emt 0:00:40]} 60. Rxe3 {[%emt 0:00:13]} Rxh4 {[%emt 0:00:36]} 61. Kc1 {[%emt 0:00:09]} Kc4 {[%emt 0:00:53]} 62. Kb1 {[%emt 0:00:14]} a4 {[%emt 0:00:21]} 63. Rg3 {[%emt 0:00:11]} Rd4 {[%emt 0:00:33]} 64. Ka2 {[%emt 0:00:37]} Kb4 {[%emt 0:00:11]} 65. Rh3 {[%emt 0:00:23]} a3 {[%emt 0:00:23]} 66. Rg3 {[%emt 0:00:23]} Rd2+ {[%emt 0:00:57]} 1/2-1/2

[Event "ESP-chT 2nd Division 2019"]
[Site "Linares"]
[Date "2019.08.22"]
[Round "5.2"]
[White "Del Rio De Angelis, Salvador G."]
[Black "Reinaldo Castineira, Roi"]
[Result "1/2-1/2"]
[ECO "D31"]
[WhiteElo "2472"]
[BlackElo "2467"]
[Annotator "ChessBase"]
[PlyCount "68"]
[EventDate "2019.08.19"]
[EventType "team-tourn"]
[EventCountry "ESP"]
[SourceTitle "playchess.com"]
[Source "ChessBase"]
[SourceQuality "1"]
[TimeControl "5400+30"]

1. d4 {[%emt 0:00:00]} e6 {[%emt 0:00:14]} 2. c4 {[%emt 0:00:45]} d5 {[%emt 0:00:24]} 3. Nc3 {[%emt 0:00:11]} a6 {[%emt 0:00:06]} 4. cxd5 {[%emt 0:00:54]} exd5 {[%emt 0:00:06]} 5. Bf4 {[%emt 0:00:06]} Nf6 {[%emt 0:05:40]} 6. e3 {[%emt 0:01:26]} Bd6 {[%emt 0:00:09]} 7. Bg5 {[%emt 0:01:32]} Be6 {[%emt 0:07:10]} 8. Bd3 {[%emt 0:01:28]} Nbd7 {[%emt 0:00:27]} 9. Nf3 {[%emt 0:10:32]} h6 {[%emt 0:04:21]} 10. Bh4 {[%emt 0:00:53]} c5 {[%emt 0:08:45]} 11. dxc5 {[%emt 0:00:54]} Nxc5 {[%emt 0:00:15]} 12. Be2 {[%emt 0:01:16]} Rc8 {[%emt 0:26:03]} 13. O-O {[%emt 0:01:52]} g5 {[%emt 0:00:26]} 14. Bg3 {[%emt 0:00:14]} Bxg3 {[%emt 0:00:08]} 15. hxg3 {[%emt 0:00:09]} Nce4 {[%emt 0:00:14]} 16. Nxe4 {[%emt 0:03:42]} dxe4 {[%emt 0:02:02]} 17. Qxd8+ {[%emt 0:00:12]} Kxd8 {[%emt 0:00:16]} 18. Nd4 {[%emt 0:00:42]} Ke7 {[%emt 0:00:06]} 19. a3 {[%emt 0:06:03]} Rc5 {[%emt 0:00:15]} 20. Rfc1 {[%emt 0:06:48]} Rhc8 {[%emt 0:00:07]} 21. Rxc5 {[%emt 0:00:07]} Rxc5 {[%emt 0:00:03]} 22. Kf1 {[%emt 0:00:48]} h5 {[%emt 0:08:56]} 23. Ke1 {[%emt 0:03:00]} h4 {[%emt 0:00:30]} 24. gxh4 {[%emt 0:00:41]} gxh4 {[%emt 0:00:06]} 25. Kd2 {[%emt 0:00:11]} Rg5 {[%emt 0:01:11]} 26. Rh1 {[%emt 0:00:50]} Rxg2 {[%emt 0:00:29]} 27. Ke1 {[%emt 0:00:07]} Ng4 {[%emt 0:13:33]} 28. Rxh4 {[%emt 0:14:54]} Rg1+ {[%emt 0:00:43]} 29. Bf1 {[%emt 0:00:11]} Ne5 {[%emt 0:09:38]} 30. Rxe4 {[%emt 0:00:25]} Nd3+ {[%emt 0:00:17]} 31. Ke2 {[%emt 0:00:04]} Nc1+ {[%emt 0:00:28]} 32. Ke1 {[%emt 0:00:06]} Nd3+ {[%emt 0:00:03]} 33. Ke2 {[%emt 0:00:03]} Nc1+ {[%emt 0:01:26]} 34. Ke1 {[%emt 0:00:04]} Nd3+ {[%emt 0:00:04]} 1/2-1/2

[Event "ESP-chT 2nd Division 2019"]
[Site "Linares"]
[Date "2019.08.22"]
[Round "5.3"]
[White "Laiz Ibanez, Hector"]
[Black "Iruzubieta Villaluenga, Jesus M"]
[Result "1/2-1/2"]
[ECO "C78"]
[WhiteElo "2274"]
[BlackElo "2438"]
[Annotator "NA"]
[PlyCount "91"]
[EventDate "2019.08.19"]
[EventType "team-tourn"]
[EventCountry "ESP"]
[SourceTitle "playchess.com"]
[Source "ChessBase"]
[SourceQuality "1"]
[TimeControl "5400+30"]

1. e4 {[%emt 0:01:11]} e5 {[%emt 0:00:00]} 2. Nf3 {[%emt 0:00:06]} Nc6 {[%emt 0:00:00]} 3. Bb5 {[%emt 0:00:03]} a6 {[%emt 0:00:59]} 4. Ba4 {[%emt 0:00:05]} Nf6 {[%emt 0:00:18]} 5. O-O {[%emt 0:00:08]} b5 {[%emt 0:00:19]} 6. Bb3 {[%emt 0:00:07]} Bb7 {[%emt 0:00:06]} 7. d3 {[%emt 0:00:11]} Bd6 {[%emt 0:00:35]} 8. c3 {[%emt 0:06:56]} O-O {[%emt 0:00:17]} 9. a4 {[%emt 0:00:05]} h6 {[%emt 0:07:02]} 10. Nh4 {[%emt 0:00:28]} Nxe4 {[%emt 0:39:37]} 11. Ng6 {[%emt 0:34:15]} Nc5 {[%emt 0:00:40]} 12. Nxf8 {[%emt 0:02:14]} Nxb3 {[%emt 0:04:27]} 13. Qxb3 {[%emt 0:00:05]} Na5 {[%emt 0:10:12]} 14. Qd1 {[%emt 0:02:07]} Bxf8 {[%emt 0:00:23]} 15. b4 {[%emt 0:04:43]} Nc6 {[%emt 0:00:08]} 16. axb5 {[%emt 0:02:01]} axb5 {[%emt 0:01:05]} 17. Rxa8 {[%emt 0:00:13]} Qxa8 {[%emt 0:01:44]} 18. Na3 {[%emt 0:01:42]} Ne7 {[%emt 0:00:59]} 19. f3 {[%emt 0:01:41]} Bc6 {[%emt 0:00:33]} 20. Qe1 {[%emt 0:07:59]} f6 {[%emt 0:00:28]} 21. Nc2 {[%emt 0:02:09]} Ng6 {[%emt 0:06:28]} 22. Be3 {[%emt 0:01:15]} Qa2 {[%emt 0:00:51]} 23. Qe2 {[%emt 0:12:30]} Qf7 {[%emt 0:02:27]} 24. Rd1 {[%emt 0:00:58]} Bd5 {[%emt 0:00:25]} 25. Na3 {[%emt 0:02:21]} c6 {[%emt 0:00:18]} 26. c4 {[%emt 0:00:24]} Be6 {[%emt 0:00:52]} 27. cxb5 {[%emt 0:00:50]} cxb5 {[%emt 0:01:07]} 28. Rb1 {[%emt 0:00:44]} Ba2 {[%emt 0:02:01]} 29. Rb2 {[%emt 0:00:49]} Bb3 {[%emt 0:00:02]} 30. Qd2 {[%emt 0:01:44]} Ba4 {[%emt 0:00:45]} 31. d4 {[%emt 0:01:15]} Bd6 {[%emt 0:00:48]} 32. dxe5 {[%emt 0:04:31]} Bxe5 {[%emt 0:00:22]} 33. Rb1 {[%emt 0:00:03]} Qe6 {[%emt 0:03:24]} 34. f4 {[%emt 0:02:07]} Bc7 {[%emt 0:04:52]} 35. Rc1 {[%emt 0:00:20]} Bb6 {[%emt 0:00:45]} 36. Bxb6 {[%emt 0:00:56]} Qxb6+ {[%emt 0:00:02]} 37. Kh1 {[%emt 0:00:15]} Qe6 {[%emt 0:00:06]} 38. h3 {[%emt 0:05:05]} Qe4 {[%emt 0:02:06]} 39. Re1 {[%emt 0:03:07]} Qf5 {[%emt 0:02:39]} 40. Re8+ {[%emt 0:01:26]} Kh7 {[%emt 0:02:50]} 41. Rd8 {[%emt 0:00:42]} Nxf4 {[%emt 0:00:35]} 42. Rxd7 {[%emt 0:00:13]} Nxh3 {[%emt 0:03:59]} 43. gxh3 {[%emt 0:00:18]} Qxh3+ {[%emt 0:00:01]} 44. Kg1 {[%emt 0:00:08]} Qxa3 {[%emt 0:01:24]} 45. Rxg7+ {[%emt 0:00:43]} Kxg7 {[%emt 0:00:04]} 46. Qd7+ {[%emt 0:00:04]} 1/2-1/2